[Event "Turkey IS Bank Super League 2017"]
[Site "Darica-Kocaeli"]
[Date "2017.07.28"]
[Round "3"]
[White "Kesgin, Halit Kaan"]
[Black "Dolgun, Can"]
[Result "1-0"]
[ECO "B51"]
[WhiteElo "2207"]
[BlackElo "2104"]
[Annotator "NA"]
[PlyCount "103"]
[EventType "team-tourn"]
[EventCountry "TUR"]
[SourceTitle "playchess.com"]
[Source "ChessBase"]
[SourceQuality "1"]
[TimeControl "40/5400+30:1800+30"]

1. e4 {[%emt 0:00:30]} c5 {[%emt 0:01:00]} 2. Nf3 {[%emt 0:00:30]} d6 {[%emt 0:00:30]} 3. Bb5+ {[%emt 0:00:30]} Nd7 {[%emt 0:00:30]} 4. d4 {[%emt 0:00:30]} cxd4 {[%emt 0:00:30]} 5. Qxd4 {[%emt 0:00:30]} a6 {[%emt 0:00:30]} 6. Bxd7+ {[%emt 0:00:30]} Bxd7 {[%emt 0:00:30]} 7. c4 {[%emt 0:00:00]} e5 {[%emt 0:00:00]} 8. Qd3 {[%emt 0:00:00]} b5 {[%emt 0:03:00]} 9. Nc3 {[%emt 0:03:30]} bxc4 {[%emt 0:03:30]} 10. Qxc4 {[%emt 0:00:30]} Be6 {[%emt 0:03:30]} 11. Qc6+ {[%emt 0:00:30]} Bd7 {[%emt 0:01:30]} 12. Qc4 {[%emt 0:00:30]} Be6 {[%emt 0:00:30]} 13. Qd3 {[%emt 0:00:00]} h6 {[%emt 0:02:30]} 14. O-O {[%emt 0:01:00]} Nf6 {[%emt 0:01:30]} 15. Rd1 {[%emt 0:03:30]} Be7 {[%emt 0:02:30]} 16. Ne1 {[%emt 0:02:30]} O-O $11 {[%emt 0:17:30]} 17. Nc2 {[%emt 0:01:30]} Qb8 {[%emt 0:25:30]} 18. Ne3 {[%emt 0:04:30]} Rc8 {[%emt 0:01:30]} 19. b3 {[%emt 0:17:30]} Ra7 {[%emt 0:20:41] [%clk 0:12.49]} 20. Bd2 {[%emt 0:18:30]} Rac7 {[%emt 0:03:38]} 21. Rac1 {[%emt 0:05:30]} Qa8 {[%emt 0:00:34]} 22. f3 {[%emt 0:01:30]} Qa7 {[%emt 0:07:14]} 23. g3 {[%emt 0:07:30]} Rc6 {[%emt 0:01:46]} 24. Kg2 {[%emt 0:00:30]} Bd8 {[%emt 0:00:36]} 25. Ncd5 {[%emt 0:05:30]} Nxd5 {[%emt 0:00:53]} 26. Rxc6 {[%emt 0:02:30]} Nf4+ {[%emt 0:01:02]} 27. gxf4 {[%emt 0:01:30]} Rxc6 {[%emt 0:00:04]} 28. f5 {[%emt 0:00:30]} Bc8 {[%emt 0:00:50]} 29. Nd5 {[%emt 0:02:30]} a5 {[%emt 0:00:11]} 30. Be3 {[%emt 0:01:46]} Qd7 {[%emt 0:00:14]} 31. Qd2 {[%emt 0:00:45]} f6 {[%emt 0:01:02]} 32. Kh1 {[%emt 0:00:44]} Ba6 {[%emt 0:00:33]} 33. Rg1 {[%emt 0:01:04]} g5 {[%emt 0:00:40]} 34. fxg6 {[%emt 0:03:13]} Qh3 {[%emt 0:00:01]} 35. Ne7+ {[%emt 0:00:52]} Kf8 {[%emt 0:00:56]} 36. g7+ {[%emt 0:00:30]} Kxe7 {[%emt 0:00:06]} 37. g8=Q {[%emt 0:00:21]} Qxf3+ {[%emt 0:00:30]} 38. Qgg2 {[%emt 0:00:00]} Qxg2+ {[%emt 0:00:23]} 39. Rxg2 {[%emt 0:00:05]} Kd7 {[%emt 0:00:00]} 40. Rg7+ {[%emt 0:00:15]} Kc8 {[%emt 0:00:06]} 41. Qd5 {[%emt 0:00:25]} Bb7 {[%emt 0:01:30]} 42. Qf7 {[%emt 0:01:30]} Rc7 {[%emt 0:00:00]} 43. Qe6+ {[%emt 0:00:30]} Kb8 {[%emt 0:00:00]} 44. Rxc7 {[%emt 0:00:30]} Bxe4+ {[%emt 0:00:30]} 45. Kg1 {[%emt 0:00:00]} Bxc7 {[%emt 0:00:00]} 46. Qe8+ {[%emt 0:00:00]} Kb7 {[%emt 0:00:00]} 47. Qb5+ {[%emt 0:00:30]} Kc8 {[%emt 0:00:30]} 48. Bb6 {[%emt 0:00:00]} Bxb6+ {[%emt 0:00:30]} 49. Qxb6 {[%emt 0:00:00]} a4 {[%emt 0:00:30]} 50. bxa4 {[%emt 0:00:00]} Bb7 {[%emt 0:00:30]} 51. a5 {[%emt 0:00:00]} d5 {[%emt 0:00:30]} 52. a6 {[%emt 0:00:00]} 1-0

[Event "Turkey IS Bank Super League 2017"]
[Site "Darica-Kocaeli"]
[Date "2017.07.28"]
[Round "3"]
[White "Yelken, Mustafa"]
[Black "Kiremitciyan, Ari"]
[Result "1/2-1/2"]
[ECO "C41"]
[WhiteElo "2171"]
[BlackElo "2240"]
[Annotator "NA"]
[PlyCount "190"]
[EventType "team-tourn"]
[EventCountry "TUR"]
[SourceTitle "playchess.com"]
[Source "ChessBase"]
[SourceQuality "1"]
[TimeControl "40/5400+30:1800+30"]

1. e4 {[%emt 0:00:30]} d6 {[%emt 0:01:00]} 2. d4 {[%emt 0:00:30]} Nf6 {[%emt 0:00:30]} 3. Nc3 {[%emt 0:00:30]} e5 {[%emt 0:00:30]} 4. Nf3 {[%emt 0:00:30]} Nbd7 {[%emt 0:00:00]} 5. Bc4 {[%emt 0:01:30]} Be7 {[%emt 0:00:00]} 6. O-O {[%emt 0:00:30]} O-O {[%emt 0:00:00]} 7. Re1 {[%emt 0:00:30]} c6 {[%emt 0:00:00]} 8. a4 {[%emt 0:00:30]} a5 {[%emt 0:00:30]} 9. b3 {[%emt 0:00:30]} Nb6 {[%emt 0:02:30]} 10. Bf1 {[%emt 0:01:30]} exd4 {[%emt 0:00:00]} 11. Qxd4 {[%emt 0:02:30]} d5 {[%emt 0:01:00]} 12. Bb2 {[%emt 0:03:30]} dxe4 {[%emt 0:13:30]} 13. Nxe4 {[%emt 0:02:30]} Qxd4 {[%emt 0:21:30]} 14. Bxd4 $14 {[%emt 0:01:30]} Nbd5 {[%emt 0:03:30]} 15. Nxf6+ {[%emt 0:07:30]} Bxf6 {[%emt 0:00:30]} 16. Bc4 {[%emt 0:06:30]} Bxd4 {[%emt 0:07:30]} 17. Nxd4 {[%emt 0:00:30]} Nb6 {[%emt 0:00:30]} 18. Re7 {[%emt 0:11:30]} Bd7 {[%emt 0:04:30]} 19. Rae1 {[%emt 0:13:30]} Rad8 {[%emt 0:03:30]} 20. R7e5 {[%emt 0:13:30] [%clk 0:30]} Rfe8 {[%emt 0:19:30]} 21. Kf1 {[%emt 0:01:30]} Rxe5 {[%emt 0:01:12]} 22. Rxe5 {[%emt 0:00:00]} Nxc4 {[%emt 0:00:54]} 23. bxc4 {[%emt 0:00:00]} b6 {[%emt 0:00:14]} 24. c5 {[%emt 0:13:15]} f6 {[%emt 0:00:07]} 25. Re7 {[%emt 0:00:58]} Kf8 {[%emt 0:05:06]} 26. Re3 {[%emt 0:00:03]} bxc5 {[%emt 0:00:35]} 27. Nb3 {[%emt 0:02:46]} c4 {[%emt 0:08:04]} 28. Nxa5 {[%emt 0:00:56]} Ra8 {[%emt 0:00:08]} 29. Nxc4 {[%emt 0:02:39]} Rxa4 {[%emt 0:00:07]} 30. Nb6 {[%emt 0:04:58]} Ra1+ {[%emt 0:02:45]} 31. Ke2 {[%emt 0:00:04]} Be8 {[%emt 0:00:05]} 32. Rc3 {[%emt 0:02:26]} Ke7 {[%emt 0:01:34]} 33. Nc4 {[%emt 0:00:02]} Bh5+ {[%emt 0:01:53]} 34. f3 {[%emt 0:01:18]} Bg6 {[%emt 0:00:28]} 35. Ne3 {[%emt 0:00:16]} Kd6 {[%emt 0:00:22]} 36. Rb3 {[%emt 0:00:33]} Kc7 {[%emt 0:00:30]} 37. Rc3 {[%emt 0:00:27]} Kd6 {[%emt 0:00:15]} 38. Nc4+ {[%emt 0:01:28]} Kc7 {[%emt 0:01:04]} 39. Ne3 {[%emt 0:00:35]} Kd6 {[%emt 0:00:18]} 40. Rb3 {[%emt 0:02:06]} Kc7 {[%emt 0:00:19]} 41. h3 {[%emt 0:07:10]} Ra2 {[%emt 0:07:30]} 42. Kd2 {[%emt 0:00:30]} Ra1 {[%emt 0:00:00]} 43. Rb4 {[%emt 0:00:30]} h5 {[%emt 0:03:00]} 44. Rc4 {[%emt 0:00:30]} Kd6 {[%emt 0:01:30]} 45. Rd4+ {[%emt 0:00:30]} Kc7 {[%emt 0:00:00]} 46. Rb4 {[%emt 0:03:30]} Ra3 {[%emt 0:02:00]} 47. Rc4 {[%emt 0:01:30]} Kd6 {[%emt 0:01:30]} 48. Rf4 {[%emt 0:06:22]} Ra1 {[%emt 0:01:30]} 49. Rb4 {[%emt 0:01:44]} Kc7 {[%emt 0:00:30]} 50. Rh4 {[%emt 0:00:14]} Ra5 {[%emt 0:03:00]} 51. Rc4 {[%emt 0:00:34]} Kd7 {[%emt 0:02:27]} 52. Rb4 {[%emt 0:01:00]} Kc7 {[%emt 0:00:34]} 53. Rb1 {[%emt 0:00:08]} Ra2 {[%emt 0:00:28]} 54. Rg1 {[%emt 0:00:31]} Ra4 {[%emt 0:01:53]} 55. g4 {[%emt 0:01:33]} hxg4 {[%emt 0:00:30]} 56. hxg4 {[%emt 0:00:00]} Rd4+ {[%emt 0:01:05]} 57. Ke2 {[%emt 0:00:02]} Ra4 {[%emt 0:00:49]} 58. Rh1 {[%emt 0:01:17]} Ra8 {[%emt 0:00:13]} 59. Kd2 {[%emt 0:00:43]} Rd8+ {[%emt 0:00:20]} 60. Kc3 {[%emt 0:00:36]} Re8 {[%emt 0:00:14]} 61. Kd2 {[%emt 0:00:41]} Rd8+ {[%emt 0:00:30]} 62. Ke2 {[%emt 0:00:00]} Re8 {[%emt 0:00:39]} 63. Kf2 {[%emt 0:00:00]} Rd8 {[%emt 0:00:17]} 64. Ke2 {[%emt 0:05:50]} Re8 {[%emt 0:00:39]} 65. Ra1 {[%emt 0:00:16]} Kb7 {[%emt 0:00:00]} 66. Kd2 {[%emt 0:01:49]} Rh8 {[%emt 0:00:47]} 67. Nf5 {[%emt 0:01:19]} Rh2+ {[%emt 0:06:57]} 68. Ke3 {[%emt 0:00:01]} Bxf5 {[%emt 0:00:27]} 69. gxf5 {[%emt 0:00:01]} Rg2 {[%emt 0:00:00]} 70. f4 {[%emt 0:05:47]} Kb6 {[%emt 0:04:10]} 71. Rc1 {[%emt 0:02:24]} Kc5 {[%emt 0:01:09]} 72. Kf3 {[%emt 0:00:30]} Rh2 {[%emt 0:00:00]} 73. Rg1 {[%emt 0:00:07]} Rxc2 {[%emt 0:04:53]} 74. Rxg7 {[%emt 0:00:30]} Rd2 {[%emt 0:00:00]} 75. Rf7 {[%emt 0:01:05]} Rd6 {[%emt 0:00:00]} 76. Ke4 {[%emt 0:00:38]} Kb5 {[%emt 0:00:44]} 77. Re7 {[%emt 0:00:06]} c5 {[%emt 0:01:08]} 78. Re6 {[%emt 0:00:01]} Kc6 {[%emt 0:00:00]} 79. Re8 {[%emt 0:00:39]} c4 {[%emt 0:00:38]} 80. Re6 {[%emt 0:00:35]} c3 {[%emt 0:00:56]} 81. Rxd6+ {[%emt 0:00:37]} Kxd6 {[%emt 0:00:35]} 82. Kd3 {[%emt 0:00:00]} Kd5 {[%emt 0:00:00]} 83. Kxc3 {[%emt 0:00:02]} Ke4 {[%emt 0:00:03]} 84. Kd2 {[%emt 0:00:15]} Kf3 {[%emt 0:01:50]} 85. Ke1 {[%emt 0:00:13]} Kxf4 {[%emt 0:00:58]} 86. Kf2 {[%emt 0:00:05]} Kxf5 {[%emt 0:00:00]} 87. Kf3 {[%emt 0:00:02]} Ke5 {[%emt 0:00:10]} 88. Ke3 {[%emt 0:00:02]} f5 {[%emt 0:00:04]} 89. Kf3 {[%emt 0:00:09]} f4 {[%emt 0:00:06]} 90. Kf2 {[%emt 0:00:05]} Ke4 {[%emt 0:00:05]} 91. Ke2 {[%emt 0:00:09]} f3+ {[%emt 0:00:11]} 92. Kf2 {[%emt 0:00:01]} Kf4 {[%emt 0:00:09]} 93. Kf1 {[%emt 0:00:04]} Ke3 {[%emt 0:00:04]} 94. Ke1 {[%emt 0:00:02]} f2+ {[%emt 0:00:09]} 95. Kf1 {[%emt 0:00:01]} Kf3 {[%emt 0:00:37]} 1/2-1/2

[Event "Turkey IS Bank Super League 2017"]
[Site "Darica-Kocaeli"]
[Date "2017.07.28"]
[Round "3"]
[White "Bozbey, Ali"]
[Black "Sevgi, Volkan"]
[Result "0-1"]
[ECO "B23"]
[WhiteElo "2139"]
[BlackElo "2199"]
[Annotator "NA"]
[PlyCount "70"]
[EventType "team-tourn"]
[EventCountry "TUR"]
[SourceTitle "playchess.com"]
[Source "ChessBase"]
[SourceQuality "1"]
[TimeControl "40/5400+30:1800+30"]

1. e4 {[%emt 0:00:30]} c5 {[%emt 0:01:00]} 2. Nc3 {[%emt 0:00:30]} e6 {[%emt 0:00:30]} 3. g3 {[%emt 0:00:30]} d5 {[%emt 0:00:00]} 4. exd5 {[%emt 0:03:30]} exd5 {[%emt 0:00:00]} 5. d4 {[%emt 0:00:30]} Nc6 {[%emt 0:01:30]} 6. dxc5 {[%emt 0:06:30]} Nf6 $11 {[%emt 0:09:30]} 7. Bg5 {[%emt 0:15:30]} Bxc5 {[%emt 0:05:30]} 8. Qe2+ {[%emt 0:01:30]} Be6 {[%emt 0:00:00]} 9. Bh3 {[%emt 0:18:30]} Nd4 {[%emt 0:02:00]} 10. Qd3 {[%emt 0:01:30]} O-O {[%emt 0:05:30]} 11. O-O-O {[%emt 0:02:30]} Nc6 {[%emt 0:10:30]} 12. Qf3 {[%emt 0:05:30]} Bd4 {[%emt 0:04:30]} 13. Bxf6 {[%emt 0:16:30]} Bxf6 {[%emt 0:00:30]} 14. Nxd5 {[%emt 0:00:30]} Bxd5 {[%emt 0:00:30]} 15. Qxd5 {[%emt 0:00:00]} Qb6 {[%emt 0:00:00]} 16. Qb3 {[%emt 0:00:00]} Qc5 {[%emt 0:09:00]} 17. Qd5 {[%emt 0:07:23]} Qxf2 {[%emt 0:01:30] 7 [%clk 0:44:0]} 18. Qf3 {[%emt 0:00:54]} Qc5 {[%emt 0:08:30]} 19. Kb1 {[%emt 0:08:12]} Ne5 {[%emt 0:00:30]} 20. Qc3 {[%emt 0:01:56]} Qb6 {[%emt 0:02:30]} 21. Qb3 {[%emt 0:00:30]} Qc6 {[%emt 0:00:30]} 22. Ne2 {[%emt 0:00:02]} Nc4 {[%emt 0:00:00]} 23. Rhf1 {[%emt 0:01:28]} Rad8 {[%emt 0:01:00]} 24. Bd7 {[%emt 0:05:14]} Qc7 {[%emt 0:06:30]} 25. Bb5 {[%emt 0:01:54]} Nd2+ {[%emt 0:00:30]} 26. Rxd2 {[%emt 0:00:04]} Rxd2 {[%emt 0:00:30]} 27. Nf4 {[%emt 0:00:36]} Qe5 {[%emt 0:00:30]} 28. Bd3 {[%emt 0:00:35]} Rf2 {[%emt 0:02:30]} 29. Rd1 {[%emt 0:00:12]} Rxh2 {[%emt 0:00:30]} 30. a3 {[%emt 0:00:23]} Rd8 {[%emt 0:00:30]} 31. Qb4 {[%emt 0:00:56]} g5 {[%emt 0:00:30]} 32. Re1 {[%emt 0:00:58]} a5 {[%emt 0:01:30]} 33. Rxe5 {[%emt 0:00:53]} axb4 {[%emt 0:00:00]} 34. Rf5 {[%emt 0:00:00]} gxf4 {[%emt 0:01:00]} 35. Rxf6 {[%emt 0:00:25]} b3 {[%emt 0:00:00]} 0-1

[Event "Turkey IS Bank Super League 2017"]
[Site "Darica-Kocaeli"]
[Date "2017.07.28"]
[Round "3"]
[White "Ererdem, Gani Eren"]
[Black "Arat, Ufuk Sezen"]
[Result "1-0"]
[ECO "E11"]
[WhiteElo "2090"]
[BlackElo "2400"]
[Annotator "NA"]
[PlyCount "101"]
[EventType "team-tourn"]
[EventCountry "TUR"]
[SourceTitle "playchess.com"]
[Source "ChessBase"]
[SourceQuality "1"]
[TimeControl "40/5400+30:1800+30"]

1. d4 {[%emt 0:00:30]} Nf6 {[%emt 0:01:00]} 2. Nf3 {[%emt 0:00:30]} e6 {[%emt 0:00:30]} 3. c4 {[%emt 0:00:30]} Bb4+ {[%emt 0:00:30]} 4. Bd2 {[%emt 0:02:30]} a5 {[%emt 0:00:30]} 5. g3 {[%emt 0:01:30]} d6 {[%emt 0:02:30]} 6. Bg2 {[%emt 0:01:30]} Bxd2+ {[%emt 0:09:30]} 7. Qxd2 {[%emt 0:01:30]} Nbd7 {[%emt 0:00:30]} 8. O-O {[%emt 0:00:30]} O-O {[%emt 0:00:30]} 9. Nc3 {[%emt 0:01:30] LiveBook: 34 Games} e5 {[%emt 0:11:30]} 10. Rfd1 {[%emt 0:12:30]} Qe7 $14 {[%emt 0:09:30]} 11. Qc2 {[%emt 0:14:30]} c6 {[%emt 0:06:30]} 12. d5 {[%emt 0:09:30]} c5 {[%emt 0:07:30]} 13. e4 {[%emt 0:13:30]} Nb6 {[%emt 0:02:30]} 14. b3 {[%emt 0:01:30]} a4 {[%emt 0:01:30]} 15. Rab1 {[%emt 0:00:30]} axb3 {[%emt 0:03:30]} 16. axb3 {[%emt 0:00:30]} Bg4 {[%emt 0:03:30]} 17. Rf1 {[%emt 0:07:30] [%clk 0:28]} Nfd7 {[%emt 0:04:30]} 18. Ne1 {[%emt 0:00:30]} Nb8 {[%emt 0:00:30]} 19. f4 {[%emt 0:05:30]} exf4 {[%emt 0:03:30]} 20. gxf4 {[%emt 0:02:30]} f5 {[%emt 0:02:30]} 21. h3 {[%emt 0:01:36]} Bh5 {[%emt 0:00:30]} 22. exf5 {[%emt 0:01:22]} Qe3+ {[%emt 0:04:30]} 23. Kh1 {[%emt 0:01:54]} Na6 {[%emt 0:03:30]} 24. Ne4 {[%emt 0:06:06]} Nb4 {[%emt 0:04:00]} 25. Qf2 {[%emt 0:00:10]} Qxf2 {[%emt 0:00:17]} 26. Rxf2 {[%emt 0:00:03]} Nc8 {[%emt 0:00:00]} 27. Ng3 {[%emt 0:02:49]} Be8 {[%emt 0:00:02]} 28. Be4 {[%emt 0:01:16]} Bd7 {[%emt 0:05:42]} 29. Ng2 {[%emt 0:02:15]} b5 {[%emt 0:00:52]} 30. Ne3 {[%emt 0:03:25]} Ra3 {[%emt 0:06:03]} 31. Rg2 {[%emt 0:01:27]} Rf7 {[%emt 0:01:45]} 32. Nh5 {[%emt 0:02:17]} Kf8 {[%emt 0:02:00]} 33. Rg3 {[%emt 0:02:06]} Nb6 {[%emt 0:03:11]} 34. cxb5 {[%emt 0:00:31]} Bxb5 {[%emt 0:01:10]} 35. Rbg1 {[%emt 0:00:05]} Raa7 {[%emt 0:00:00]} 36. f6 {[%emt 0:00:27]} g6 {[%emt 0:01:49]} 37. f5 {[%emt 0:00:01]} Bd3 {[%emt 0:00:27]} 38. Bxd3 {[%emt 0:00:11]} Nxd3 {[%emt 0:00:00]} 39. fxg6 {[%emt 0:00:15]} hxg6 {[%emt 0:00:30]} 40. Rxg6 {[%emt 0:00:00]} Ke8 {[%emt 0:00:42]} 41. Rg8+ {[%emt 0:08:14]} Kd7 {[%emt 0:09:30]} 42. R1g7 {[%emt 0:00:30]} Ra1+ {[%emt 0:00:30]} 43. Kh2 {[%emt 0:00:30]} Ne5 {[%emt 0:00:30]} 44. Rf8 {[%emt 0:00:30]} Nf3+ {[%emt 0:08:08]} 45. Kg3 {[%emt 0:00:30]} Rg1+ {[%emt 0:00:13]} 46. Ng2 {[%emt 0:00:30]} Ne5 {[%emt 0:00:20]} 47. Rgxf7+ {[%emt 0:00:30]} Nxf7 {[%emt 0:00:06]} 48. Rxf7+ {[%emt 0:00:30]} Kd8 {[%emt 0:01:01]} 49. Nhf4 {[%emt 0:00:30]} Nd7 {[%emt 0:00:22]} 50. Ne6+ {[%emt 0:00:30]} Kc8 {[%emt 0:00:30]} 51. Rxd7 {[%emt 0:00:30]} 1-0

[Event "Turkey IS Bank Super League 2017"]
[Site "Darica-Kocaeli"]
[Date "2017.07.28"]
[Round "3"]
[White "Karagollu, Ahmet"]
[Black "Goksel, Doga Cihan"]
[Result "1-0"]
[ECO "C00"]
[WhiteElo "2083"]
[BlackElo "2247"]
[Annotator "NA"]
[PlyCount "55"]
[EventType "team-tourn"]
[EventCountry "TUR"]
[SourceTitle "playchess.com"]
[Source "ChessBase"]
[SourceQuality "1"]
[TimeControl "40/5400+30:1800+30"]

1. e4 {[%emt 0:00:30]} c5 {[%emt 0:01:00]} 2. Nf3 {[%emt 0:00:30]} e6 {[%emt 0:03:30]} 3. d3 {[%emt 0:00:30]} Nc6 {[%emt 0:04:30]} 4. g3 {[%emt 0:01:30]} g6 {[%emt 0:01:30]} 5. Bg2 {[%emt 0:00:30]} Bg7 {[%emt 0:00:30]} 6. O-O {[%emt 0:00:30]} Nge7 {[%emt 0:00:30]} 7. c3 {[%emt 0:00:30]} O-O {[%emt 0:04:30]} 8. Qe2 {[%emt 0:02:30]} d6 {[%emt 0:09:30]} 9. Rd1 {[%emt 0:08:30]} b6 {[%emt 0:04:30]} 10. d4 {[%emt 0:08:30]} cxd4 {[%emt 0:05:30]} 11. cxd4 $14 {[%emt 0:00:30]} a5 {[%emt 0:04:30]} 12. Bf4 {[%emt 0:11:30]} Ba6 {[%emt 0:03:30]} 13. Qd2 {[%emt 0:00:30]} Rc8 {[%emt 0:06:30]} 14. Nc3 {[%emt 0:05:30]} Qd7 {[%emt 0:13:30]} 15. Bh6 {[%emt 0:05:30]} Na7 {[%emt 0:04:30]} 16. h4 {[%emt 0:03:30]} Nb5 {[%emt 0:02:30]} 17. Nxb5 {[%emt 0:02:30]} Bxb5 {[%emt 0:00:30]} 18. h5 {[%emt 0:05:30] [%clk 0:40]} Rfe8 {[%emt 0:11:55]} 19. Bxg7 {[%emt 0:00:30]} Kxg7 {[%emt 0:00:06]} 20. h6+ {[%emt 0:00:30]} Kh8 {[%emt 0:01:31]} 21. d5 {[%emt 0:12:30]} Ng8 {[%emt 0:06:17]} 22. dxe6 {[%emt 0:00:30]} Qxe6 {[%emt 0:01:48]} 23. Qd4+ {[%emt 0:04:30]} f6 {[%emt 0:04:29]} 24. Qxb6 {[%emt 0:00:30]} Rb8 {[%emt 0:00:58]} 25. Qxa5 {[%emt 0:04:30]} Nxh6 {[%emt 0:00:38]} 26. Nd4 {[%emt 0:00:30]} Qe5 {[%emt 0:01:29]} 27. Qd2 {[%emt 0:05:42]} Bd7 {[%emt 0:01:30]} 28. Qxh6 {[%emt 0:00:41]} 1-0

[Event "Turkey IS Bank Super League 2017"]
[Site "Darica-Kocaeli"]
[Date "2017.07.28"]
[Round "3"]
[White "Gundogan, Cem"]
[Black "Tirak, Mert"]
[Result "1/2-1/2"]
[ECO "B96"]
[WhiteElo "2062"]
[BlackElo "1909"]
[Annotator "NA"]
[PlyCount "68"]
[EventType "team-tourn"]
[EventCountry "TUR"]
[SourceTitle "playchess.com"]
[Source "ChessBase"]
[SourceQuality "1"]
[TimeControl "40/5400+30:1800+30"]

1. e4 {[%emt 0:00:30]} c5 {[%emt 0:01:00]} 2. Nf3 {[%emt 0:00:30]} d6 {[%emt 0:03:30]} 3. Nc3 {[%emt 0:00:30]} Nf6 {[%emt 0:01:30]} 4. d4 {[%emt 0:00:30]} cxd4 {[%emt 0:00:30]} 5. Nxd4 {[%emt 0:00:00]} a6 {[%emt 0:00:30]} 6. Be3 {[%emt 0:00:00]} Ng4 {[%emt 0:02:30]} 7. Bc1 {[%emt 0:01:30]} Nf6 {[%emt 0:00:30]} 8. Be3 {[%emt 0:00:30]} Ng4 {[%emt 0:02:30]} 9. Bc1 {[%emt 0:00:30]} Nf6 {[%emt 0:04:30]} 10. Bg5 {[%emt 0:03:30]} e6 {[%emt 0:05:30]} 11. f4 {[%emt 0:00:30]} Qc7 {[%emt 0:00:30]} 12. Qf3 {[%emt 0:00:30]} Nbd7 {[%emt 0:00:30]} 13. O-O-O {[%emt 0:00:00]} b5 {[%emt 0:03:30]} 14. e5 {[%emt 0:11:00]} Bb7 {[%emt 0:00:30]} 15. Qh3 {[%emt 0:00:30]} dxe5 {[%emt 0:04:30] [#]} 16. Nxe6 $11 {[%emt 0:01:30]} fxe6 {[%emt 0:01:30]} 17. Qxe6+ {[%emt 0:00:30]} Be7 {[%emt 0:00:30]} 18. Bxb5 {[%emt 0:14:30]} axb5 {[%emt 0:02:30]} 19. Nxb5 {[%emt 0:00:30]} Qc6 {[%emt 0:05:30]} 20. Nd6+ {[%emt 0:07:30]} Kd8 {[%emt 0:01:30]} 21. fxe5 {[%emt 0:16:30]} Kc7 {[%emt 0:07:30]} 22. Qxe7 {[%emt 0:05:30]} Rxa2 {[%emt 0:02:30]} 23. exf6 {[%emt 0:05:30]} Ra1+ {[%emt 0:01:30]} 24. Kd2 {[%emt 0:00:00]} Qd5+ {[%emt 0:00:00]} 25. Kc3 {[%emt 0:01:00]} Qa5+ {[%emt 0:00:00]} 26. Kd3 {[%emt 0:00:30]} Qd5+ {[%emt 0:00:30]} 27. Kc3 {[%emt 0:00:30]} Qa5+ {[%emt 0:00:30]} 28. Kd3 {[%emt 0:00:30]} Qd5+ {[%emt 0:00:00]} 29. Ke2 {[%emt 0:00:30]} Qxg2+ {[%emt 0:02:00] [%clk 0:43]} 30. Kd3 {[%emt 0:00:30]} Qd5+ {[%emt 0:04:30]} 31. Ke2 {[%emt 0:00:30]} Qg2+ {[%emt 0:00:30]} 32. Kd3 {[%emt 0:00:30]} Qd5+ {[%emt 0:00:30]} 33. Kc3 {[%emt 0:00:30]} Qa5+ {[%emt 0:00:00]} 34. Kd3 {[%emt 0:02:30]} Qd5+ {[%emt 0:00:00]} 1/2-1/2

[Event "Turkey IS Bank Super League 2017"]
[Site "Darica-Kocaeli"]
[Date "2017.07.28"]
[Round "3"]
[White "Gulden, Egemen"]
[Black "Tarlabasi, Emirhan"]
[Result "1-0"]
[ECO "C09"]
[WhiteElo "2044"]
[BlackElo "2046"]
[Annotator "NA"]
[PlyCount "97"]
[EventType "team-tourn"]
[EventCountry "TUR"]
[SourceTitle "playchess.com"]
[Source "ChessBase"]
[SourceQuality "1"]
[TimeControl "40/5400+30:1800+30"]

1. e4 {[%emt 0:00:30] 7} e6 {[%emt 0:01:00] 7} 2. d4 {[%emt 0:00:30] 7} d5 {[%emt 0:00:30]} 3. Nd2 {[%emt 0:00:30]} c5 {[%emt 0:00:30]} 4. Ngf3 {[%emt 0:00:00]} Nc6 {[%emt 0:02:30]} 5. exd5 {[%emt 0:01:00]} exd5 {[%emt 0:00:30]} 6. Bb5 {[%emt 0:00:30]} Qe7+ {[%emt 0:00:00]} 7. Be2 {[%emt 0:06:30]} Nf6 {[%emt 0:01:00]} 8. O-O {[%emt 0:09:30]} Qc7 {[%emt 0:01:30]} 9. dxc5 {[%emt 0:00:30]} Bxc5 {[%emt 0:03:30]} 10. Nb3 {[%emt 0:01:30]} Be7 {[%emt 0:02:30]} 11. c3 {[%emt 0:03:30]} h6 {[%emt 0:07:30]} 12. Be3 {[%emt 0:02:30]} O-O {[%emt 0:01:30]} 13. h3 {[%emt 0:04:30]} Be6 {[%emt 0:10:30]} 14. Nbd4 {[%emt 0:01:30]} a6 {[%emt 0:02:30]} 15. a4 {[%emt 0:06:30]} Bd6 {[%emt 0:12:30]} 16. Qc1 {[%emt 0:07:30]} Nh5 {[%emt 0:25:30] [%clk 0:25]} 17. Nxe6 {[%emt 0:27:30]} fxe6 {[%emt 0:00:00]} 18. Ng5 {[%emt 0:00:30]} hxg5 {[%emt 0:16:58]} 19. Bxh5 {[%emt 0:00:30]} Bh2+ {[%emt 0:02:42]} 20. Kh1 {[%emt 0:00:30]} Bf4 {[%emt 0:00:00]} 21. g3 {[%emt 0:09:04]} Bxe3 {[%emt 0:00:00]} 22. Qxe3 {[%emt 0:00:00]} Qe7 {[%emt 0:00:34]} 23. Rad1 {[%emt 0:07:06]} Rad8 {[%emt 0:01:33]} 24. Bf3 {[%emt 0:04:04]} Rd6 {[%emt 0:06:23]} 25. Bg2 {[%emt 0:02:28]} Rfd8 {[%emt 0:00:31]} 26. f4 {[%emt 0:01:26]} gxf4 {[%emt 0:00:13]} 27. Rxf4 {[%emt 0:01:09]} Rf8 {[%emt 0:01:25]} 28. Rh4 {[%emt 0:00:06]} Rdd8 {[%emt 0:00:07]} 29. Qd3 {[%emt 0:00:28]} Rf5 {[%emt 0:00:23]} 30. Re1 {[%emt 0:01:09]} Qf6 {[%emt 0:00:37]} 31. Kh2 {[%emt 0:00:39]} Ne5 {[%emt 0:00:22]} 32. Qe3 {[%emt 0:01:15]} Rf8 {[%emt 0:00:34]} 33. Rf4 {[%emt 0:00:30]} Rxf4 {[%emt 0:00:46]} 34. gxf4 {[%emt 0:00:03]} Nc4 {[%emt 0:00:18]} 35. Qxe6+ {[%emt 0:00:34]} Qxe6 {[%emt 0:00:30]} 36. Rxe6 {[%emt 0:00:00]} Nxb2 {[%emt 0:00:50]} 37. Bxd5 {[%emt 0:00:00]} Kh8 {[%emt 0:00:04]} 38. Re4 {[%emt 0:00:47]} Nd1 {[%emt 0:00:36]} 39. Bxb7 {[%emt 0:00:57]} Nxc3 {[%emt 0:00:29]} 40. Rc4 {[%emt 0:00:26]} Ne2 {[%emt 0:01:05]} 41. f5 {[%emt 0:05:19]} g6 {[%emt 0:16:03]} 42. Bxa6 {[%emt 0:02:30]} Rxf5 {[%emt 0:00:17]} 43. h4 {[%emt 0:15:18]} Nf4 {[%emt 0:13:29]} 44. Bc8 {[%emt 0:01:08]} Rf8 {[%emt 0:01:08]} 45. a5 {[%emt 0:01:03]} Nd5 {[%emt 0:00:36]} 46. Bb7 {[%emt 0:01:25]} Ne3 {[%emt 0:00:52]} 47. Ra4 {[%emt 0:01:32]} Nf5 {[%emt 0:00:30]} 48. a6 {[%emt 0:00:00]} Rd8 {[%emt 0:00:54]} 49. a7 {[%emt 0:00:15]} 1-0